fUSD/lending_fUSD_20251101
["ID","MTS","AMOUNT","RATE_DAILY","PERIOD"]
[392835816,1762023037728,-9999.99,0.00014811,2]
[392835817,1762023037738,-9999.99,0.00014811,2]
[392835818,1762023037748,-1425.0,0.0001482,2]
[392835819,1762023037758,-562.91551155,0.0001482,2]
[392835820,1762023037768,-8999.93225687,0.00014822,2]
[392835821,1762023037777,-1060.44286918,0.00014833,2]
[392835822,1762023037787,-2961.97030388,0.00014833,2]
[392835823,1762023037797,-8999.93225687,0.00014833,2]
[392835824,1762023037807,-1425.0,0.00014844,2]
[392835826,1762023037816,-8999.93225687,0.00014844,2]
[392835828,1762023037826,-1425.0,0.00014847,2]
[392835830,1762023037835,-1060.44286918,0.00014855,2]
[392835831,1762023037845,-2961.97030388,0.00014856,2]
[392835832,1762023037855,-8999.93225687,0.00014856,2]
[392835833,1762023037865,-151.0,0.00014856,2]
[392835834,1762023037875,-151.0,0.00014856,2]
[392835835,1762023037884,-151.0,0.00014856,2]
[392835837,1762023037894,-158.89191,0.00014856,2]
[392835839,1762023037903,-156.304317,0.00014856,2]
[392835841,1762023037912,-158.89191,0.00014856,2]
[392835842,1762023037922,-151.0,0.00014856,2]
[392835843,1762023037931,-158.89191,0.00014856,2]
[392835844,1762023037940,-151.0,0.00014856,2]
[392835845,1762023037952,-158.89191,0.00014856,2]
[392835846,1762023037962,-151.0,0.00014856,2]
[392835847,1762023037971,-240.965897,0.00014856,2]
[392835848,1762023037981,-206.952324,0.00014856,2]
[392835849,1762023037990,-153.568752,0.00014856,2]
[392835850,1762023038000,-206.952324,0.00014856,2]
[392835851,1762023038009,-206.952324,0.00014856,2]
[392835852,1762023038019,-206.952324,0.00014856,2]
[392835853,1762023038028,-818.0,0.00014863,2]
[392835854,1762023038042,-326.41,0.00014865,2]
[392835855,1762023038052,-8999.93225687,0.00014867,2]
[392835856,1762023038063,-168.0,0.00014867,2]
[392835857,1762023038073,-151.0,0.00014867,2]
[392835858,1762023038085,-151.0,0.00014867,2]
[392835859,1762023038095,-151.0,0.00014867,2]
[392835860,1762023038104,-151.0,0.00014867,2]
[392835861,1762023038116,-209.943752,0.00014867,2]
[392835862,1762023038126,-151.0,0.00014867,2]
[392835863,1762023038137,-151.0,0.00014867,2]
[392835864,1762023038146,-151.0,0.00014871,2]
[392835865,1762023038156,-151.0,0.00014871,2]
[392835866,1762023038166,-151.0,0.00014871,2]
[392835867,1762023038176,-151.0,0.00014871,2]
[392835868,1762023038186,-151.0,0.00014871,2]
[392835869,1762023038196,-151.0,0.00014871,2]
[392835870,1762023038206,-153.736114,0.00014871,2]
[392835871,1762023038217,-151.0,0.00014871,2]
[392835872,1762023038227,-151.0,0.00014871,2]
[392835873,1762023038237,-151.0,0.00014871,2]
[392835874,1762023038247,-173.792522,0.00014871,2]
[392835875,1762023038258,-151.0,0.00014871,2]
[392835876,1762023038268,-151.0,0.00014871,2]
[392835877,1762023038278,-296.218888,0.00014871,2]
[392835878,1762023038288,-151.0,0.00014871,2]
[392835879,1762023038301,-151.0,0.00014871,2]
[392835880,1762023038311,-151.0,0.00014871,2]
[392835881,1762023038320,-200.929311,0.00014871,2]
[392835882,1762023038330,-200.929311,0.00014871,2]
[392835883,1762023038340,-200.929311,0.00014871,2]
[392835884,1762023038350,-151.0,0.00014871,2]
[392835885,1762023038361,-200.929311,0.00014871,2]
[392835886,1762023038371,-151.0,0.00014871,2]
[392835887,1762023038380,-151.0,0.00014871,2]
[392835888,1762023038389,-151.0,0.00014871,2]
[392835889,1762023038400,-151.0,0.00014871,2]
[392835890,1762023038410,-181.755588,0.00014871,2]
[392835891,1762023038420,-151.0,0.00014871,2]
[392835892,1762023038430,-181.755588,0.00014871,2]
[392835893,1762023038439,-151.0,0.00014871,2]
[392835894,1762023038450,-181.755588,0.00014871,2]
[392835895,1762023038459,-181.755588,0.00014871,2]
[392835896,1762023038469,-236.547143,0.00014871,2]
[392835897,1762023038478,-236.547143,0.00014871,2]
[392835898,1762023038488,-236.547143,0.00014871,2]
[392835899,1762023038498,-236.547143,0.00014871,2]
[392835900,1762023038508,-151.0,0.00014871,2]
[392835901,1762023038517,-502.85131318,0.00014873,2]
[392835902,1762023038528,-249.83476115,0.00014873,2]
[392835903,1762023038537,-500.0,0.00014873,2]
[392835904,1762023038547,-500.0,0.00014873,2]
[392835905,1762023038558,-500.0,0.00014873,2]
[392835906,1762023038568,-487.45554306,0.00014873,2]
[392835907,1762023038578,-500.8204809,0.00014873,2]
[392835908,1762023038588,-177.90675776,0.00014873,2]
[392835909,1762023038598,-556.12004957,0.00014873,2]
[392835910,1762023038607,-329.62985104,0.00014873,2]
[392835911,1762023038856,-504.30416132,0.00014873,2]
[392835912,1762023038866,-500.88687561,0.00014873,2]
[392835913,1762023038877,-500.0,0.00014873,2]
[392835914,1762023038887,-500.0,0.00014873,2]
[392835915,1762023038898,-500.0,0.00014873,2]
[392835916,1762023038908,-508.10551792,0.00014873,2]
[392835917,1762023038918,-200.0,0.00014874,2]
[392835918,1762023038928,-1060.44286918,0.00014878,2]
[392835919,1762023038938,-2961.97030388,0.00014878,2]
[392835920,1762023038949,-3144.69063365,0.00014878,2]
[392835921,1762023038962,-1077.30901779,0.00014878,2]
[392835928,1762023039695,-3313.6280373,0.00014878,2]
[392835929,1762023039799,-364.13,0.00014878,2]
[392835933,1762023042899,-151.0,0.00014867,2]
[392835934,1762023042910,-1100.17456813,0.00014878,2]
[392835935,1762023042921,-175.508233,0.00014881,2]
[392835936,1762023042934,-1353.89,0.00014881,2]
[392835937,1762023042945,-1993.4451256,0.00014881,2]
[392836009,1762023045983,-151.0,0.00014867,2]
[392836010,1762023045993,-266.950732,0.00014867,2]
[392836011,1762023046003,-329.0158744,0.00014881,2]
[392836012,1762023046012,-168.0,0.00014887,2]
[392836013,1762023046022,-154.957081,0.00014887,2]
[392836014,1762023046031,-151.0,0.00014887,2]
[392836015,1762023046044,-151.0,0.00014887,2]
[392836016,1762023046053,-243.742611,0.00014887,2]
[392836017,1762023046062,-151.0,0.00014887,2]
[392836018,1762023046072,-151.0,0.00014887,2]
[392836019,1762023046081,-173.198354,0.00014887,2]
[392836020,1762023046091,-173.198354,0.00014887,2]
[392836021,1762023046100,-173.198354,0.00014887,2]
[392836022,1762023046110,-173.198354,0.00014887,2]
[392836023,1762023046120,-151.0,0.00014887,2]
[392836024,1762023046130,-151.0,0.00014887,2]
[392836025,1762023046139,-151.0,0.00014887,2]
[392836026,1762023046148,-151.0,0.00014887,2]
[392836027,1762023046158,-151.0,0.00014887,2]
[392836028,1762023046166,-151.0,0.00014887,2]
[392836029,1762023046175,-151.0,0.00014887,2]
[392836030,1762023046185,-151.0,0.00014887,2]
[392836031,1762023046194,-151.0,0.00014887,2]
[392836032,1762023046203,-8999.93225687,0.00014889,2]
[392836033,1762023046212,-168.0,0.00014891,2]
[392836034,1762023046221,-4258.052,0.00014891,2]
[392836035,1762023046230,-151.0,0.00014891,2]
[392836036,1762023046239,-151.0,0.00014891,2]
[392836037,1762023046248,-151.0,0.00014891,2]
[392836038,1762023046256,-151.0,0.00014891,2]
[392836039,1762023046266,-151.0,0.00014891,2]
[392836040,1762023046275,-192.994068,0.00014891,2]
[392836041,1762023046283,-192.994068,0.00014891,2]
[392836042,1762023046292,-192.994068,0.00014891,2]
[392836043,1762023046302,-192.994068,0.00014891,2]
[392836044,1762023046311,-151.0,0.00014891,2]
[392836045,1762023046320,-151.0,0.00014891,2]
[392836046,1762023046328,-153.720104,0.00014892,2]
[392836047,1762023046337,-151.0,0.00014892,2]
[392836048,1762023046347,-151.0,0.00014892,2]
[392836049,1762023046356,-151.0,0.00014892,2]
[392836050,1762023046366,-151.893563,0.00014892,2]
[392836051,1762023046375,-1921.64693458,0.000149,2]
[392836052,1762023046385,-426.89389683,0.000149,2]
[392836053,1762023046396,-573.10610317,0.000149,2]
[392836054,1762023046405,-1000.0,0.000149,2]
[392836055,1762023046414,-1000.0,0.000149,2]
[392836056,1762023046423,-1000.0,0.000149,2]
[392836057,1762023046432,-40.45756044,0.000149,2]
[392836058,1762023046443,-809.68401322,0.000149,2]
[392836059,1762023058289,500.0,0.00014356,2]
[392836060,1762023061737,150.0,0.00014799,2]
[392836061,1762023073635,182.88627332,0.00014356,2]
[392836062,1762023081300,500.0,0.00014799,2]
[392836063,1762023099116,500.0,0.00014799,2]
[392836064,1762023109162,150.0,0.00014,2]
[392836065,1762023128317,239.84119403,0.00014791,2]
[392836066,1762023139146,654.0,0.00014707,2]
[392836067,1762023143135,654.0,0.00014622,2]
[392836068,1762023152947,654.0,0.00014462,2]
[392836069,1762023154072,5815.28253265,0.000147,2]
[392836070,1762023154096,10000.01,0.000147,2]
[392836071,1762023154119,6538.53076735,0.000147,2]
[392836072,1762023158968,892.56216733,0.00014755,2]
[392836073,1762023193169,1035.01,0.00031232,120]
[392836074,1762023193410,1035.01,0.00031506,120]
[392836075,1762023205658,2206.76875646,0.00014794,2]
[392836076,1762023242133,150.0,0.00014799,2]
[392836077,1762023278308,212.14830886,0.00014607,2]
[392836078,1762023278332,7.11105522,0.00014607,2]
[392836079,1762023301122,1200.0,0.00014799,2]
[392836080,1762023331682,456.21865186,0.00014799,2]
[392836081,1762023354432,168.0,0.00014772,2]
[392836082,1762023361514,550.936355,0.00014725,2]
[392836083,1762023392575,500.0,0.00014356,2]
[392836084,1762023413064,175.43879,0.0001475,2]
[392836085,1762023422495,150.0,0.00014799,2]
[392836086,1762023428144,151.0,0.00014791,2]
[392836087,1762023428734,151.0,0.00014791,2]
[392836088,1762023429323,151.0,0.00014791,2]
[392836089,1762023429930,151.0,0.00014791,2]
[392836090,1762023430515,151.0,0.00014791,2]
[392836091,1762023431094,151.0,0.00014791,2]
[392836092,1762023431847,168.83364264,0.00014791,2]
[392836093,1762023432235,212.64433447,0.00014791,2]
[392836094,1762023432282,151.0,0.00014791,2]
[392836095,1762023432924,151.0,0.00014791,2]
[392836096,1762023433517,151.0,0.00014791,2]
[392836097,1762023434103,151.0,0.00014791,2]
[392836098,1762023434709,151.0,0.00014791,2]
[392836099,1762023435322,151.0,0.00014791,2]
[392836100,1762023435924,151.0,0.00014791,2]
[392836101,1762023436524,151.0,0.00014791,2]
[392836102,1762023437274,151.0,0.00014791,2]
[392836103,1762023437754,151.0,0.00014791,2]
[392836104,1762023439144,496.47127164,0.00014791,2]
[392836105,1762023440046,500.0,0.00014791,2]
[392836106,1762023440665,500.0,0.00014791,2]
[392836107,1762023441275,500.0,0.00014791,2]
[392836108,1762023441994,500.0,0.00014791,2]
[392836109,1762023443711,948.76,0.00031232,120]
[392836110,1762023443959,948.76,0.00031506,120]
[392836111,1762023444205,491.59971886,0.00014791,2]
[392836112,1762023450794,212.70877707,0.00014791,2]
[392836113,1762023450861,200.0,0.00014791,2]
[392836114,1762023522198,2140.8871,0.000147,2]
[392836115,1762023527655,467.46,0.00013881,2]
[392836116,1762023573122,2313.4316,0.000147,2]
[392836117,1762023601541,771.45153243,0.00014799,2]
[392836118,1762023601564,428.54846757,0.00014799,2]
[392836119,1762023602031,150.0,0.00014799,2]
[392836120,1762023610579,157.05,0.00013888,2]
[392836121,1762023610784,157.05,0.00014756,2]
[392836122,1762023657178,151.0,0.00014799,2]
[392836123,1762023657300,151.0,0.00014799,2]
[392836124,1762023657857,151.0,0.00014799,2]
[392836125,1762023657897,151.0,0.00014799,2]
[392836126,1762023664461,869.7,0.00031232,120]
[392836127,1762023664714,869.7,0.00031506,120]
[392836128,1762023668103,695.85,0.00013892,2]
[392836131,1762023716058,2319.91117542,0.00014703,2]
[392836132,1762023721071,2319.91117534,0.00014725,2]
[392836133,1762023721105,166.66,0.0001433,2]
[392836134,1762023725124,207.4,0.00014791,2]
[392836135,1762023726066,2319.91117534,0.00014747,2]
[392836136,1762023731123,473.71800633,0.00014769,2]
[392836137,1762023731148,1846.19316901,0.00014769,2]
[392836138,1762023736079,2319.91117534,0.00014791,2]
[392836139,1762023738956,496.47127164,0.00014791,2]
[392836142,1762023781624,150.0,0.00014799,2]
[392836143,1762023786935,205.21528465,0.00014799,2]
[392836144,1762023832356,4767.4628,0.00014783,2]
[392836145,1762023844861,214.75629936,0.000147,2]
[392836146,1762023844884,1129.24370064,0.000147,2]
[392836147,1762023901154,1200.0,0.00014799,2]
[392836150,1762023904901,797.22,0.00031232,120]
[392836151,1762023905135,797.22,0.00031506,120]
[392836152,1762023905367,299.31642017,0.000147,2]
[392836153,1762023909492,150.0,0.00013488,2]
[392836154,1762023909528,150.0,0.00013862,2]
[392836155,1762023909600,150.0,0.00014237,2]
[392836156,1762023909672,150.0,0.00014612,2]
[392836157,1762023909866,150.0,0.00013488,2]
[392836158,1762023909902,150.0,0.00013987,2]
[392836159,1762023909950,150.0,0.00014487,2]
[392836160,1762023910150,150.0,0.00013488,2]
[392836161,1762023910215,150.0,0.00013787,2]
[392836162,1762023910286,150.0,0.00014087,2]
[392836163,1762023910325,150.0,0.00014387,2]
[392836164,1762023910379,150.0,0.00014687,2]
[392836165,1762023910575,150.75800744,0.00013488,2]
[392836166,1762023914370,150.0,0.00013488,2]
[392836167,1762023914432,150.0,0.00013737,2]
[392836168,1762023914521,150.0,0.00014237,2]
[392836169,1762023914583,150.0,0.00013987,2]
[392836170,1762023914648,150.0,0.00014487,2]
[392836171,1762023914716,150.0,0.00014737,2]
[392836172,1762023917839,150.0,0.00013488,2]
[392836173,1762023917883,150.0,0.00013987,2]
[392836174,1762023917959,150.0,0.00014487,2]
[392836175,1762023923967,999.999999,0.000147,2]
[392836176,1762023926440,150.00000001,0.00013488,2]
[392836177,1762023929554,150.0,0.00013488,2]
[392836178,1762023929869,150.0,0.00013488,2]
[392836179,1762023934694,150.0,0.00013488,2]
[392836180,1762023958304,151.0,0.00014799,2]
[392836181,1762023958664,151.0,0.00014799,2]
[392836182,1762023961080,603.28,0.00013863,2]
[392836183,1762023961767,150.0,0.00014799,2]
[392836186,1762023996826,739.73803915,0.000147,2]
[392836187,1762023997648,675.67383359,0.00014734,2]
[392836188,1762023997675,6101.18936641,0.00014734,2]
[392836189,1762024000240,739.73803915,0.000147,2]
[392836190,1762024028927,629.99851385,0.00014791,2]
[392836191,1762024039203,414.6898,0.00014761,2]
[392836195,1762024067204,179.56337406,0.00014792,2]
[392836196,1762024092975,1934.83090653,0.00014,2]
[392836197,1762024092996,10000.01,0.00014,2]
[392836198,1762024093018,2440.03087445,0.00014,2]
[392836199,1762024122516,1012.06,0.00013865,2]
[392836203,1762024141948,150.0,0.00014799,2]
[392836204,1762024143029,730.79,0.00031232,120]
[392836205,1762024143268,730.79,0.00031506,120]
[392836206,1762024168483,6397.91912555,0.000147,2]
[392836207,1762024168505,10000.01,0.000147,2]
[392836208,1762024168527,10000.01,0.000147,2]
[392836209,1762024168549,10000.01,0.000147,2]
[392836210,1762024168570,10000.01,0.000147,2]
[392836211,1762024168593,10000.01,0.000147,2]
[392836212,1762024168615,10000.01,0.000147,2]
[392836213,1762024168641,10000.01,0.000147,2]
[392836214,1762024168663,10000.01,0.000147,2]
[392836215,1762024168684,10000.01,0.000147,2]
[392836216,1762024179344,-626.13502554,0.000147,2]
[392836217,1762024180719,-449.56385109,0.000147,2]
[392836218,1762024180741,-9100.88229782,0.000147,2]
[392836219,1762024186933,485.643281,0.00014626,2]
[392836220,1762024190685,167.06278946,0.000147,2]
[392836221,1762024201168,1200.0,0.00014799,2]
[392836224,1762024206496,1606.6492128,0.000147,2]
[392836225,1762024211456,1606.64921274,0.00014722,2]
[392836226,1762024216467,1606.64921274,0.00014744,2]
[392836227,1762024221464,1606.64921274,0.00014767,2]
[392836228,1762024226453,1606.64921274,0.00014789,2]
[392836234,1762024231716,-3388.0,0.000148,2]
[392836235,1762024231823,-104818.29587594,0.000148,2]
[392836236,1762024231833,-20138.20587594,0.000148,2]
[392836237,1762024231844,-9723.63824812,0.000148,2]
[392836238,1762024231855,-7425.40486524,0.000148,2]
[392836239,1762024231865,-500.0,0.000148,2]
[392836240,1762024231876,-500.0,0.000148,2]
[392836241,1762024231885,-500.0,0.000148,2]
[392836242,1762024231895,-500.0,0.000148,2]
[392836243,1762024231905,-10000.01,0.000148,2]
[392836244,1762024231917,-10638.86384432,0.000148,2]
[392836245,1762024231926,-7444.59462272,0.000148,2]
[392836246,1762024231936,-2555.41537728,0.000148,2]
[392836247,1762024231947,-159.55464033,0.000148,2]
[392836248,1762024231957,-195.0,0.000148,2]
[392836249,1762024231968,-5000.0,0.000148,2]
[392836250,1762024231977,-300.0,0.000148,2]
[392836251,1762024231987,-250.0,0.000148,2]
[392836252,1762024231997,-166.66,0.00014803,2]
[392836253,1762024232007,-1425.0,0.00014806,2]
[392836254,1762024232016,-179.563374,0.00014807,2]
[392836255,1762024232024,-1606.64921274,0.00014811,2]
[392836256,1762024232034,-159.55464027,0.00014817,2]
[392836257,1762024232043,-1425.0,0.00014818,2]
[392836258,1762024232053,-150.99,0.00014822,2]
[392836259,1762024232062,-3149.61,0.00014822,2]
[392836260,1762024232072,-5857.41,0.00014822,2]
[392836261,1762024232081,-179.563374,0.00014823,2]
[392836262,1762024232090,-9999.99,0.00014823,2]
[392836263,1762024232100,-200.0,0.00014824,2]
[392836264,1762024232110,-1425.0,0.00014829,2]
[392836265,1762024232119,-654.0,0.00014831,2]
[392836266,1762024232128,-159.55464027,0.00014833,2]
[392836267,1762024232138,-179.563374,0.00014838,2]
[392836268,1762024232147,-159.55464027,0.0001485,2]
[392836269,1762024232156,-179.563374,0.00014854,2]
[392836270,1762024232165,-326.41,0.00014865,2]
[392836271,1762024232175,-159.55464027,0.00014867,2]
[392836273,1762024232184,-179.563374,0.00014869,2]
[392836275,1762024232197,-500.0,0.00014873,2]
[392836277,1762024232208,-165.1930955,0.00014873,2]
[392836280,1762024232220,-500.0,0.00014873,2]
[392836282,1762024232233,-500.0,0.00014873,2]
[392836284,1762024232244,-500.0,0.00014873,2]
[392836286,1762024232255,-500.0,0.00014873,2]
[392836288,1762024232265,-500.0,0.00014873,2]
[392836291,1762024232276,-500.0,0.00014873,2]
[392836293,1762024232286,-420.8788,0.00014873,2]
[392836295,1762024232297,-159.55464027,0.00014883,2]
[392836296,1762024232309,-179.563374,0.00014885,2]
[392836297,1762024232320,-500.0,0.00014885,2]
[392836298,1762024232331,-151.0,0.00014885,2]
[392836299,1762024232342,-276.66464787,0.00014891,2]
[392836300,1762024232357,-226.01126432,0.00014891,2]
[392836301,1762024232367,-500.0,0.00014891,2]
[392836302,1762024232378,-543.89242558,0.00014891,2]
[392836303,1762024232389,-5786.6299447,0.00014892,2]
[392836305,1762024232400,-20587.35506173,0.00014892,2]
[392836307,1762024232414,-707.97205118,0.00014892,2]
[392836308,1762024232427,-8821.99561999,0.00014892,2]
[392836309,1762024232438,-151.0,0.00014892,2]
[392836310,1762024232450,-151.0,0.00014892,2]
[392836311,1762024232461,-151.0,0.00014892,2]
[392836312,1762024232472,-161.329533,0.00014892,2]
[392836313,1762024232482,-151.0,0.00014892,2]
[392836314,1762024232492,-151.0,0.00014892,2]
[392836315,1762024232503,-151.0,0.00014892,2]
[392836316,1762024232516,-196.035227,0.00014892,2]
[392836317,1762024232527,-160.743449,0.00014892,2]
[392836318,1762024232538,-158.707883,0.00014892,2]
[392836319,1762024232550,-151.0,0.00014892,2]
[392836320,1762024232561,-234.677128,0.00014892,2]
[392836321,1762024232571,-151.0,0.00014892,2]
[392836322,1762024232581,-154.395254,0.00014892,2]
[392836323,1762024232592,-154.395254,0.00014892,2]
[392836324,1762024232602,-154.395254,0.00014892,2]
[392836325,1762024232613,-154.395254,0.00014892,2]
[392836326,1762024232625,-170.718702,0.00014892,2]
[392836327,1762024232638,-218.167847,0.00014892,2]
[392836328,1762024232648,-151.0,0.00014892,2]
[392836329,1762024232660,-218.167847,0.00014892,2]
[392836330,1762024232670,-218.167847,0.00014892,2]
[392836331,1762024232680,-151.0,0.00014892,2]
[392836332,1762024232691,-151.0,0.00014892,2]
[392836333,1762024232703,-218.167847,0.00014892,2]
[392836334,1762024232713,-151.0,0.00014892,2]
[392836335,1762024232723,-151.0,0.00014892,2]
[392836336,1762024232735,-151.913564,0.00014892,2]
[392836337,1762024232745,-151.0,0.00014892,2]
[392836338,1762024232756,-165.561859,0.00014892,2]
[392836339,1762024232767,-165.561859,0.00014892,2]
[392836340,1762024232778,-151.0,0.00014892,2]
[392836341,1762024232788,-174.961184,0.00014892,2]
[392836342,1762024232798,-165.561859,0.00014892,2]
[392836343,1762024232808,-174.961184,0.00014892,2]
[392836344,1762024232820,-151.0,0.00014892,2]
[392836345,1762024232831,-154.230211,0.00014892,2]
[392836346,1762024232843,-174.961184,0.00014892,2]
[392836347,1762024232853,-154.230211,0.00014892,2]
[392836348,1762024232864,-174.961184,0.00014892,2]
[392836349,1762024232874,-151.0,0.00014892,2]
[392836350,1762024232884,-154.230211,0.00014892,2]
[392836351,1762024232895,-151.0,0.00014892,2]
[392836352,1762024232906,-154.230211,0.00014892,2]
[392836353,1762024232916,-151.0,0.00014892,2]
[392836354,1762024232925,-151.0,0.00014892,2]
[392836355,1762024232935,-290.988572,0.00014892,2]
[392836356,1762024232944,-151.0,0.00014892,2]
[392836357,1762024232955,-151.0,0.00014892,2]
[392836358,1762024232965,-1382.63,0.00014892,2]
[392836359,1762024232976,-151.0,0.00014892,2]
[392836360,1762024232988,-151.0,0.00014892,2]
[392836361,1762024233000,-235.555738,0.00014892,2]
[392836362,1762024233010,-151.0,0.00014892,2]
[392836363,1762024233020,-151.0,0.00014892,2]
[392836364,1762024233030,-151.0,0.00014892,2]
[392836365,1762024233041,-151.0,0.00014892,2]
[392836366,1762024233051,-151.0,0.00014892,2]
[392836367,1762024233061,-189.237715,0.00014892,2]
[392836368,1762024233071,-151.0,0.00014892,2]
[392836369,1762024233082,-189.237715,0.00014892,2]
[392836370,1762024233092,-151.0,0.00014892,2]
[392836371,1762024233103,-189.237715,0.00014892,2]
[392836372,1762024233115,-151.0,0.00014892,2]
[392836373,1762024233127,-189.237715,0.00014892,2]
[392836374,1762024233139,-151.0,0.00014892,2]
[392836375,1762024233150,-151.0,0.00014892,2]
[392836376,1762024233161,-200.5002248,0.00014892,2]
[392836377,1762024233176,-6.2010142,0.00014892,2]
[392836378,1762024233186,-151.0,0.00014892,2]
[392836379,1762024233196,-152.706276,0.00014892,2]
[392836380,1762024233206,-152.706276,0.00014892,2]
[392836381,1762024233220,-37.3864338,0.00014892,2]
[392836382,1762024233233,-113.6135662,0.00014892,2]
[392836383,1762024233244,-152.706276,0.00014892,2]
[392836384,1762024233254,-151.0,0.00014892,2]
[392836385,1762024233265,-152.706276,0.00014892,2]
[392836386,1762024233275,-151.0,0.00014892,2]
[392836387,1762024233286,-151.0,0.00014892,2]
[392836388,1762024233297,-151.0,0.00014892,2]
[392836389,1762024233308,-151.0,0.00014892,2]
[392836390,1762024233319,-151.0,0.00014892,2]
[392836391,1762024233329,-151.0,0.00014892,2]
[392836392,1762024233340,-150.0,0.00014892,2]
[392836393,1762024233351,-500.0,0.00014892,2]
[392836394,1762024233362,-500.0,0.00014892,2]
[392836395,1762024233372,-60112.29237983,0.00014899,2]
[392836396,1762024233383,-3823.714,0.00014899,2]
[392836397,1762024233394,-151.0,0.00014899,2]
[392836398,1762024233406,-151.0,0.00014899,2]
[392836399,1762024233417,-190.455071,0.00014899,2]
[392836400,1762024233428,-151.0,0.00014899,2]
[392836401,1762024233439,-151.0,0.00014899,2]
[392836402,1762024233450,-151.0,0.00014899,2]
[392836403,1762024233460,-151.0,0.00014899,2]
[392836404,1762024233471,-155.664653,0.00014899,2]
[392836405,1762024233481,-158.286097,0.00014899,2]
[392836406,1762024233492,-151.0,0.00014899,2]
[392836407,1762024233502,-151.0,0.00014899,2]
[392836408,1762024233513,-151.0,0.00014899,2]
[392836409,1762024233524,-151.0,0.00014899,2]
[392836410,1762024233535,-151.0,0.00014899,2]
[392836411,1762024233545,-151.0,0.00014899,2]
[392836412,1762024233555,-235.317126,0.00014899,2]
[392836413,1762024233566,-150.0,0.00014899,2]
[392836414,1762024233576,-150.0,0.00014899,2]
[392836415,1762024233587,-500.0,0.00014899,2]
[392836416,1762024233598,-229.91013889,0.00014899,2]
[392836417,1762024233608,-150.0,0.00014899,2]
[392836418,1762024233619,-154.44294817,0.00014899,2]
[392836419,1762024233630,-150.0,0.00014899,2]
[392836420,1762024233645,-150.0,0.00014899,2]
[392836421,1762024233655,-151.0,0.00014899,2]
[392836422,1762024233666,-151.0,0.00014899,2]
[392836423,1762024233677,-156.396522,0.00014899,2]
[392836424,1762024233688,-151.0,0.00014899,2]
[392836425,1762024233698,-151.0,0.00014899,2]
[392836426,1762024233711,-277.270565,0.00014899,2]
[392836427,1762024233722,-149.85842634,0.000149,2]
[392836428,1762024233733,-1009.0,0.000149,2]
[392836429,1762024233744,-500.0,0.000149,2]
[392836430,1762024233755,-500.0,0.000149,2]
[392836431,1762024233765,-500.0,0.000149,2]
[392836432,1762024233776,-500.0,0.000149,2]
[392836433,1762024233787,-500.0,0.000149,2]
[392836434,1762024233798,-500.0,0.000149,2]
[392836435,1762024233809,-500.0,0.000149,2]
[392836436,1762024233820,-500.0,0.000149,2]
[392836437,1762024233830,-500.0,0.000149,2]